[Event "GER-ch Youth U12W 2020"]
[Site "Willingen"]
[Date "2020.10.27"]
[Round "1.9"]
[White "Flierl, Veronika"]
[Black "Jacobasch, Ronja"]
[Result "0-1"]
[ECO "B06"]
[WhiteElo "1404"]
[BlackElo "1549"]
[Annotator "NA"]
[PlyCount "102"]
[EventDate "2020.10.27"]
[EventType "swiss"]
[EventRounds "7"]
[EventCountry "GER"]
[SourceTitle "playchess.com"]
[Source "ChessBase"]
[SourceQuality "1"]
[TimeControl "40/5400+30:1800+30"]

1. e4 {[%emt 0:00:00]} d6 {[%emt 0:00:00]} 2. d4 {[%emt 0:00:09]} g6 {[%emt 0:00:01]} 3. Nc3 {[%emt 0:00:12]} Bg7 {[%emt 0:00:23]} 4. Be3 {[%emt 0:00:18]} Nf6 {[%emt 0:00:26]} 5. f3 {[%emt 0:00:12]} O-O {[%emt 0:03:24]} 6. Qd2 {[%emt 0:00:20]} a6 {[%emt 0:01:30]} 7. O-O-O {[%emt 0:01:53]} b5 {[%emt 0:00:57]} 8. Bh6 {[%emt 0:00:56]} Nbd7 {[%emt 0:02:07]} 9. h4 {[%emt 0:00:59]} c5 {[%emt 0:06:48]} 10. Nce2 {[%emt 0:05:22]} c4 {[%emt 0:04:15]} 11. g4 {[%emt 0:01:46]} a5 {[%emt 0:04:49]} 12. Ng3 {[%emt 0:01:08]} Qc7 {[%emt 0:08:37]} 13. Bxg7 {[%emt 0:05:16]} Kxg7 {[%emt 0:00:18]} 14. h5 {[%emt 0:04:58]} Rh8 {[%emt 0:29:08]} 15. Qg5 {[%emt 0:09:32]} Nb6 {[%emt 0:05:22]} 16. Qxb5 {[%emt 0:06:24]} h6 {[%emt 0:01:08]} 17. Bxc4 {[%emt 0:14:27]} Nxc4 {[%emt 0:00:58]} 18. Qb3 {[%emt 0:01:10]} Rb8 {[%emt 0:01:46]} 19. Qc3 {[%emt 0:01:08]} Rb7 {[%emt 0:01:36]} 20. b3 {[%emt 0:04:04]} Na3 {[%emt 0:02:11]} 21. Qb2 {[%emt 0:01:02]} Nb5 {[%emt 0:01:11]} 22. e5 {[%emt 0:01:27]} Nd5 {[%emt 0:04:37]} 23. N1e2 {[%emt 0:03:08]} Kh7 {[%emt 0:05:15]} 24. Kb1 {[%emt 0:01:47]} Ndc3+ {[%emt 0:00:43]} 25. Ka1 {[%emt 0:00:55]} Nxd1 {[%emt 0:00:37]} 26. hxg6+ {[%emt 0:03:35]} fxg6 {[%emt 0:00:26]} 27. Qc1 {[%emt 0:00:56]} Kg7 {[%emt 0:02:04]} 28. Qxd1 {[%emt 0:01:01]} dxe5 {[%emt 0:00:53]} 29. Qd3 {[%emt 0:04:04]} Rd8 {[%emt 0:02:19]} 30. Qd2 {[%emt 0:03:18]} g5 {[%emt 0:01:39]} 31. Nh5+ {[%emt 0:00:45]} Kf8 {[%emt 0:00:28]} 32. Qd3 {[%emt 0:02:55]} Nxd4 {[%emt 0:03:15]} 33. Qg6 {[%emt 0:04:02]} Nxe2 {[%emt 0:03:55]} 34. Qxh6+ {[%emt 0:00:32]} Kf7 {[%emt 0:01:18]} 35. Qg7+ {[%emt 0:00:51]} Ke6 {[%emt 0:00:33]} 36. Qg6+ {[%emt 0:00:18]} Kd5 {[%emt 0:00:58]} 37. Qe4+ {[%emt 0:00:48]} Kc5 {[%emt 0:00:12]} 38. Qe3+ {[%emt 0:01:03]} Nd4 {[%emt 0:00:43]} 39. Qc3+ {[%emt 0:00:10]} Kd6 {[%emt 0:00:21]} 40. Qd3 {[%emt 0:02:23]} Kc6 {[%emt 0:02:05]} 41. Qa6+ {[%emt 0:33:25]} Qb6 {[%emt 0:02:01]} 42. Qc4+ {[%emt 0:00:00]} Qc5 {[%emt 0:00:43]} 43. Qa6+ {[%emt 0:00:00]} Rb6 {[%emt 0:00:32]} 44. Qa8+ {[%emt 0:00:00]} Kc7 {[%emt 0:01:09]} 45. Qa7+ {[%emt 0:00:00]} Bb7 {[%emt 0:00:28]} 46. Ng7 {[%emt 0:00:00]} Qc3+ {[%emt 0:00:28]} 47. Kb1 {[%emt 0:00:00]} Qxc2+ {[%emt 0:00:27]} 48. Ka1 {[%emt 0:00:00]} Ra8 {[%emt 0:01:43]} 49. Ne8+ {[%emt 0:00:00]} Rxe8 {[%emt 0:01:22]} 50. Qxa5 {[%emt 0:00:00]} Nxb3+ {[%emt 0:01:00]} 51. axb3 {[%emt 0:00:00]} Ra8 {[%emt 0:00:17]} 0-1

[Event "GER-ch Youth U12W 2020"]
[Site "Willingen"]
[Date "2020.10.27"]
[Round "1.10"]
[White "Haug, Mara"]
[Black "Czäczine, Laura"]
[Result "1-0"]
[ECO "C56"]
[WhiteElo "1366"]
[BlackElo "1309"]
[Annotator "NA RC"]
[PlyCount "123"]
[EventDate "2020.10.27"]
[EventType "swiss"]
[EventRounds "7"]
[EventCountry "GER"]
[SourceTitle "playchess.com"]
[Source "ChessBase"]
[SourceQuality "1"]
[TimeControl "40/5400+30:1800+30"]

1. e4 {[%emt 0:00:00]} e5 {[%emt 0:00:00]} 2. Nf3 {[%emt 0:00:00]} Nc6 {[%emt 0:00:00]} 3. Bc4 {[%emt 0:03:20]} Nf6 {[%emt 0:00:00]} 4. d4 {[%emt 0:00:25]} exd4 {[%emt 0:00:01]} 5. O-O {[%emt 0:00:09]} Nxe4 {[%emt 0:00:08]} 6. Re1 {[%emt 0:00:17]} d5 {[%emt 0:00:07]} 7. Bxd5 {[%emt 0:00:08]} Qxd5 {[%emt 0:00:08]} 8. Nc3 {[%emt 0:00:12]} Qh5 {[%emt 0:00:24]} 9. Nxe4 {[%emt 0:00:08]} Be6 {[%emt 0:00:09]} 10. Bg5 {[%emt 0:00:15]} Bd6 {[%emt 0:00:13]} 11. Nxd6+ {[%emt 0:01:04]} cxd6 {[%emt 0:00:08]} 12. Bf4 {[%emt 0:00:58]} Qd5 {[%emt 0:00:37]} 13. c3 {[%emt 0:00:27]} O-O {[%emt 0:01:22]} 14. Nxd4 {[%emt 0:01:10]} Nxd4 {[%emt 0:00:33]} 15. Qxd4 {[%emt 0:00:21]} Qxd4 {[%emt 0:00:39]} 16. cxd4 {[%emt 0:00:07]} Rfd8 {[%emt 0:00:50]} 17. b3 {[%emt 0:02:38]} Rac8 {[%emt 0:01:59]} 18. Rac1 {[%emt 0:01:06]} d5 {[%emt 0:01:08]} 19. h3 {[%emt 0:22:18]} h6 {[%emt 0:03:06]} 20. a4 {[%emt 0:08:27]} g5 {[%emt 0:01:04]} 21. Bd2 {[%emt 0:05:15]} a6 {[%emt 0:01:31]} 22. f4 {[%emt 0:13:51]} gxf4 {[%emt 0:02:25]} 23. Bxf4 {[%emt 0:02:29]} Kh7 {[%emt 0:00:39]} 24. Rf1 {[%emt 0:07:08]} Rg8 {[%emt 0:02:04]} 25. Kh2 {[%emt 0:01:22]} Rge8 {[%emt 0:03:03]} 26. Bd6 {[%emt 0:04:55]} Rxc1 {[%emt 0:02:22]} 27. Rxc1 {[%emt 0:00:07]} Rc8 {[%emt 0:01:10]} 28. Rxc8 {[%emt 0:03:35]} Bxc8 {[%emt 0:00:08]} 29. Kg3 {[%emt 0:00:26]} Kg6 {[%emt 0:00:09]} 30. Kf4 {[%emt 0:04:11]} Kf6 {[%emt 0:00:26]} 31. g4 {[%emt 0:03:50]} a5 {[%emt 0:01:56]} 32. Bc7 {[%emt 0:01:59]} Kg6 {[%emt 0:02:03]} 33. Bxa5 {[%emt 0:02:33]} h5 {[%emt 0:00:21]} 34. Bd8 {[%emt 0:02:37]} f5 {[%emt 0:01:39]} 35. g5 {[%emt 0:03:08]} Bd7 {[%emt 0:01:45]} 36. h4 {[%emt 0:01:49]} b5 {[%emt 0:01:59]} 37. axb5 {[%emt 0:01:10]} Bxb5 {[%emt 0:00:06]} 38. Bc7 {[%emt 0:01:24]} Ba6 {[%emt 0:00:19]} 39. Ke5 {[%emt 0:00:47]} Bb7 {[%emt 0:00:38]} 40. Ke6 {[%emt 0:00:23]} Ba8 {[%emt 0:00:51]} 41. b4 {[%emt 0:30:41]} Bb7 {[%emt 0:30:24]} 42. b5 {[%emt 0:00:37]} Ba8 {[%emt 0:00:34]} 43. Bf4 {[%emt 0:01:35]} Bb7 {[%emt 0:00:21]} 44. Kd7 {[%emt 0:00:32]} Ba8 {[%emt 0:01:55]} 45. Kc7 {[%emt 0:00:25]} Kf7 {[%emt 0:00:19]} 46. b6 {[%emt 0:00:25]} Kg7 {[%emt 0:00:38]} 47. b7 {[%emt 0:00:06]} Bxb7 {[%emt 0:00:04]} 48. Kxb7 {[%emt 0:00:06]} Kf7 {[%emt 0:00:09]} 49. Kc6 {[%emt 0:00:13]} Ke6 {[%emt 0:00:12]} 50. Kc5 {[%emt 0:00:16]} Ke7 {[%emt 0:00:15]} 51. Kxd5 {[%emt 0:00:07]} Kd7 {[%emt 0:00:15]} 52. Kc5 {[%emt 0:00:19]} Ke7 {[%emt 0:00:12]} 53. Kc6 {[%emt 0:00:04]} Ke8 {[%emt 0:00:14]} 54. Kc7 {[%emt 0:00:13]} Ke7 {[%emt 0:00:24]} 55. d5 {[%emt 0:00:09]} Kf7 {[%emt 0:00:06]} 56. d6 {[%emt 0:00:13]} Ke6 {[%emt 0:00:06]} 57. d7 {[%emt 0:00:05]} Kd5 {[%emt 0:00:11]} 58. d8=Q+ {[%emt 0:00:13]} Ke4 {[%emt 0:00:07]} 59. Qd2 {[%emt 0:00:56]} Kf3 {[%emt 0:00:07]} 60. Qe3+ {[%emt 0:00:15]} Kg2 {[%emt 0:00:19]} 61. Qg3+ {[%emt 0:00:20]} Kh1 {[%emt 0:00:15]} 62. Qh2# {[%emt 0:00:09]} 1-0

[Event "GER-ch Youth U12W 2020"]
[Site "Willingen"]
[Date "2020.10.27"]
[Round "1.11"]
[White "Steinlechner, Katja"]
[Black "Schwenke, Mia"]
[Result "1/2-1/2"]
[ECO "D53"]
[WhiteElo "1366"]
[BlackElo "1265"]
[Annotator "NA RC"]
[PlyCount "56"]
[EventDate "2020.10.27"]
[EventType "swiss"]
[EventRounds "7"]
[EventCountry "GER"]
[SourceTitle "playchess.com"]
[Source "ChessBase"]
[SourceQuality "1"]
[TimeControl "40/5400+30:1800+30"]

1. d4 {[%emt 0:00:00]} d5 {[%emt 0:00:00]} 2. c4 {[%emt 0:00:00]} e6 {[%emt 0:00:00]} 3. Nc3 {[%emt 0:00:00]} Nf6 {[%emt 0:00:02]} 4. Bg5 {[%emt 0:00:05]} Be7 {[%emt 0:00:13]} 5. e3 {[%emt 0:00:17]} c6 {[%emt 0:00:50]} 6. Nf3 {[%emt 0:00:41]} O-O {[%emt 0:00:56]} 7. cxd5 {[%emt 0:01:08]} exd5 {[%emt 0:00:15]} 8. Bd3 {[%emt 0:00:26]} Nbd7 {[%emt 0:00:41]} 9. O-O {[%emt 0:00:38]} Re8 {[%emt 0:04:27]} 10. Qc2 {[%emt 0:01:06]} Nf8 {[%emt 0:12:40]} 11. Rab1 {[%emt 0:01:26]} a5 {[%emt 0:01:01]} 12. a3 {[%emt 0:00:51]} Bd6 {[%emt 0:01:53]} 13. h3 {[%emt 0:02:52]} b6 {[%emt 0:24:38]} 14. b4 {[%emt 0:21:51]} axb4 {[%emt 0:03:45]} 15. axb4 {[%emt 0:00:23]} b5 {[%emt 0:06:09]} 16. Rfc1 {[%emt 0:04:23]} Bb7 {[%emt 0:04:48]} 17. Qb3 {[%emt 0:07:05]} N8d7 {[%emt 0:07:20]} 18. Rc2 {[%emt 0:02:13]} Qb6 {[%emt 0:06:43]} 19. Rbc1 {[%emt 0:02:26]} Ra7 {[%emt 0:05:15]} 20. Qb2 {[%emt 0:04:40]} Qa6 {[%emt 0:01:23]} 21. Qa2 {[%emt 0:02:23]} Bxb4 {[%emt 0:01:36]} 22. Qxa6 {[%emt 0:00:17]} Rxa6 {[%emt 0:00:09]} 23. Bxf6 {[%emt 0:01:19]} Nxf6 {[%emt 0:00:24]} 24. Nxb5 {[%emt 0:05:22]} Rb6 {[%emt 0:03:16]} 25. Na7 {[%emt 0:03:49]} Ba3 {[%emt 0:02:30]} 26. Ra1 {[%emt 0:02:03]} Bd6 {[%emt 0:00:25]} 27. Rac1 {[%emt 0:01:50]} Ba3 {[%emt 0:00:16]} 28. Ra1 {[%emt 0:02:34]} Bd6 {[%emt 0:00:03]} 1/2-1/2

[Event "GER-ch Youth U12W 2020"]
[Site "Willingen"]
[Date "2020.10.27"]
[Round "1.12"]
[White "Moldovan, Tatiana"]
[Black "Rosin, Ida"]
[Result "0-1"]
[ECO "B47"]
[WhiteElo "1516"]
[BlackElo "1387"]
[Annotator "NA RC"]
[PlyCount "70"]
[EventDate "2020.10.27"]
[EventType "swiss"]
[EventRounds "7"]
[EventCountry "GER"]
[SourceTitle "playchess.com"]
[Source "ChessBase"]
[SourceQuality "1"]
[TimeControl "40/5400+30:1800+30"]

1. e4 {[%emt 0:04:22]} c5 {[%emt 0:00:00]} 2. Nc3 {[%emt 0:05:03]} e6 {[%emt 0:00:14]} 3. Nf3 {[%emt 0:00:41]} Nc6 {[%emt 0:00:38]} 4. d4 {[%emt 0:01:09]} cxd4 {[%emt 0:00:53]} 5. Nxd4 {[%emt 0:03:14]} Qc7 {[%emt 0:02:06]} 6. Ndb5 {[%emt 0:03:12]} Qb8 {[%emt 0:05:45]} 7. Be2 {[%emt 0:04:48]} a6 {[%emt 0:01:57]} 8. Nd4 {[%emt 0:00:31]} Bd6 {[%emt 0:01:50]} 9. Nxc6 {[%emt 0:02:47]} bxc6 {[%emt 0:01:50]} 10. g3 {[%emt 0:00:49]} Nf6 {[%emt 0:01:09]} 11. f4 {[%emt 0:01:33]} Bc7 {[%emt 0:00:55]} 12. e5 {[%emt 0:02:42]} Nd5 {[%emt 0:01:50]} 13. Ne4 {[%emt 0:00:55]} O-O {[%emt 0:02:15]} 14. Qd3 {[%emt 0:06:27]} Nb4 {[%emt 0:02:45]} 15. Qd2 {[%emt 0:02:19]} Ba5 {[%emt 0:01:14]} 16. c3 {[%emt 0:01:02]} Nd5 {[%emt 0:01:49]} 17. Qd3 {[%emt 0:00:58]} f5 {[%emt 0:02:41]} 18. exf6 Nxf6 {[%emt 0:03:21]} 19. Nxf6+ {[%emt 0:01:31]} Rxf6 {[%emt 0:00:23]} 20. b4 {[%emt 0:01:19]} Bb6 {[%emt 0:00:33]} 21. Bb2 {[%emt 0:00:44]} a5 {[%emt 0:01:07]} 22. a3 {[%emt 0:00:30]} Ba6 {[%emt 0:01:00]} 23. c4 {[%emt 0:00:41]} Rf7 {[%emt 0:01:04]} 24. Bh5 {[%emt 0:01:32]} Rf5 {[%emt 0:01:30]} 25. g4 {[%emt 0:00:19]} Rxf4 {[%emt 0:00:44]} 26. Rf1 {[%emt 0:02:17]} Bxc4 {[%emt 0:02:19]} 27. Qc3 {[%emt 0:05:16]} Rxf1+ {[%emt 0:01:39]} 28. Kd2 {[%emt 0:00:10]} Qd6+ {[%emt 0:00:43]} 29. Kc2 {[%emt 0:00:45]} Rf2+ {[%emt 0:01:26]} 30. Kc1 {[%emt 0:00:26]} Rxb2 {[%emt 0:00:57]} 31. Kxb2 {[%emt 0:00:23]} Bd4 {[%emt 0:00:37]} 32. Kc2 {[%emt 0:01:50]} Bxc3 {[%emt 0:00:12]} 33. Kxc3 {[%emt 0:00:03]} Qd3+ {[%emt 0:00:29]} 34. Kb2 {[%emt 0:00:04]} Qd2+ {[%emt 0:00:23]} 35. Kb1 {[%emt 0:00:30]} Bd3# {[%emt 0:00:10]} 0-1

[Event "GER-ch Youth U12W 2020"]
[Site "Willingen"]
[Date "2020.10.27"]
[Round "1.13"]
[White "Glotz, Diana"]
[Black "Stepanjan, Marianne"]
[Result "1-0"]
[ECO "A22"]
[WhiteElo "1098"]
[BlackElo "1351"]
[Annotator "NA RC"]
[PlyCount "81"]
[EventDate "2020.10.27"]
[EventType "swiss"]
[EventRounds "7"]
[EventCountry "GER"]
[SourceTitle "playchess.com"]
[Source "ChessBase"]
[SourceQuality "1"]
[TimeControl "40/5400+30:1800+30"]

1. c4 {[%emt 0:00:00]} e5 {[%emt 0:00:00]} 2. Nc3 {[%emt 0:00:00]} Nf6 {[%emt 0:00:00]} 3. g3 {[%emt 0:00:00]} d5 {[%emt 0:01:26]} 4. cxd5 {[%emt 0:00:06]} Nxd5 {[%emt 0:00:06]} 5. Bg2 {[%emt 0:00:14]} Be6 {[%emt 0:02:10]} 6. e3 {[%emt 0:03:06]} c5 {[%emt 0:06:42]} 7. Nge2 {[%emt 0:03:57]} Nc6 {[%emt 0:07:13]} 8. d4 {[%emt 0:04:51]} exd4 {[%emt 0:08:37]} 9. exd4 {[%emt 0:00:13]} c4 {[%emt 0:04:12]} 10. a3 {[%emt 0:02:25]} Be7 {[%emt 0:03:28]} 11. Be3 {[%emt 0:03:55]} O-O {[%emt 0:13:50]} 12. O-O {[%emt 0:00:40]} a6 {[%emt 0:03:10]} 13. a4 {[%emt 0:04:06]} Na5 {[%emt 0:04:22]} 14. Nc1 {[%emt 0:02:46]} Qd7 {[%emt 0:12:39]} 15. Bd2 {[%emt 0:02:38]} Nc6 {[%emt 0:04:16]} 16. Be3 {[%emt 0:01:55]} Na5 {[%emt 0:02:04]} 17. Qf3 {[%emt 0:03:33]} Nb4 {[%emt 0:03:11]} 18. Qd1 {[%emt 0:04:31]} Nd3 {[%emt 0:01:56]} 19. Nxd3 {[%emt 0:00:45]} cxd3 {[%emt 0:00:06]} 20. d5 {[%emt 0:02:03]} Bf5 {[%emt 0:01:22]} 21. Ne4 {[%emt 0:04:11]} Nc4 {[%emt 0:03:29]} 22. b3 {[%emt 0:07:02]} Nb2 {[%emt 0:02:02]} 23. Qd2 {[%emt 0:02:55]} Bxe4 {[%emt 0:01:02]} 24. Bxe4 {[%emt 0:00:57]} Bf6 {[%emt 0:03:01]} 25. Rab1 {[%emt 0:00:30]} Qe7 {[%emt 0:01:05]} 26. Bxd3 {[%emt 0:04:23]} Nxd3 {[%emt 0:00:41]} 27. Qxd3 {[%emt 0:00:13]} Rfd8 {[%emt 0:00:40]} 28. Rfd1 {[%emt 0:01:16]} Be5 {[%emt 0:01:20]} 29. Qe4 {[%emt 0:04:27]} Rac8 {[%emt 0:02:46]} 30. Bf4 {[%emt 0:01:21]} Bf6 {[%emt 0:00:24]} 31. Qxe7 {[%emt 0:00:14]} Bxe7 {[%emt 0:00:01]} 32. d6 {[%emt 0:00:59]} Bf6 {[%emt 0:00:50]} 33. d7 {[%emt 0:01:04]} Rc3 {[%emt 0:01:40]} 34. Rbc1 {[%emt 0:00:46]} Rxc1 {[%emt 0:01:28]} 35. Bxc1 {[%emt 0:00:07]} Be7 {[%emt 0:00:07]} 36. Bf4 {[%emt 0:00:19]} Ra8 {[%emt 0:00:47]} 37. Rc1 {[%emt 0:00:41]} Rd8 {[%emt 0:02:12]} 38. Rc8 {[%emt 0:00:23]} f6 {[%emt 0:01:37]} 39. Bc7 {[%emt 0:00:18]} Kf7 {[%emt 0:01:15]} 40. Bxd8 {[%emt 0:00:15]} Bxd8 {[%emt 0:00:16]} 41. Rxd8 {[%emt 0:30:07]} 1-0

[Event "GER-ch Youth U12W 2020"]
[Site "Willingen"]
[Date "2020.10.27"]
[Round "1.14"]
[White "Arnold, Rubina"]
[Black "Pröttel, Ela"]
[Result "1-0"]
[ECO "A06"]
[WhiteElo "1414"]
[BlackElo "1229"]
[Annotator "NA RC"]
[PlyCount "73"]
[EventDate "2020.10.27"]
[EventType "swiss"]
[EventRounds "7"]
[EventCountry "GER"]
[SourceTitle "playchess.com"]
[Source "ChessBase"]
[SourceQuality "1"]
[TimeControl "40/5400+30:1800+30"]

1. Nf3 {[%emt 0:00:00]} d5 {[%emt 0:00:00]} 2. c4 {[%emt 0:00:00]} Nf6 {[%emt 0:03:20]} 3. b3 {[%emt 0:02:39]} Bf5 {[%emt 0:01:36]} 4. Bb2 {[%emt 0:00:53]} e6 {[%emt 0:01:18]} 5. g3 {[%emt 0:00:20]} c6 {[%emt 0:04:02]} 6. Bg2 {[%emt 0:00:35]} Nbd7 {[%emt 0:00:58]} 7. O-O {[%emt 0:00:54]} Bd6 {[%emt 0:01:52]} 8. d4 {[%emt 0:10:41]} O-O {[%emt 0:11:07]} 9. Nbd2 {[%emt 0:04:50]} Ne4 {[%emt 0:08:10]} 10. Re1 {[%emt 0:13:45]} Ndf6 {[%emt 0:06:01]} 11. Nxe4 {[%emt 0:06:15]} Nxe4 {[%emt 0:00:33]} 12. Nd2 {[%emt 0:01:54]} Nxd2 {[%emt 0:01:38]} 13. Qxd2 {[%emt 0:00:14]} Rc8 {[%emt 0:04:01]} 14. f3 {[%emt 0:01:58]} dxc4 {[%emt 0:12:12]} 15. e4 {[%emt 0:03:05]} Bg6 {[%emt 0:00:50]} 16. bxc4 {[%emt 0:00:12]} Qc7 {[%emt 0:13:25]} 17. Rac1 {[%emt 0:06:46]} Rfd8 {[%emt 0:02:32]} 18. f4 {[%emt 0:02:55]} h6 {[%emt 0:04:57]} 19. e5 {[%emt 0:01:59]} Bf8 {[%emt 0:00:45]} 20. Kh1 {[%emt 0:03:05]} Rd7 {[%emt 0:01:20]} 21. d5 {[%emt 0:03:03]} Rcd8 {[%emt 0:03:19]} 22. d6 {[%emt 0:00:13]} Qc8 {[%emt 0:02:23]} 23. Bd4 {[%emt 0:03:18]} Qb8 {[%emt 0:03:11]} 24. Qf2 {[%emt 0:05:07]} a6 {[%emt 0:02:18]} 25. Bb6 {[%emt 0:01:20]} Re8 {[%emt 0:00:42]} 26. Re2 {[%emt 0:01:23]} Kh8 {[%emt 0:02:32]} 27. Rb2 {[%emt 0:00:29]} Bh7 {[%emt 0:00:37]} 28. Bc7 {[%emt 0:00:22]} Qa8 {[%emt 0:00:53]} 29. Qb6 {[%emt 0:00:47]} g5 {[%emt 0:02:08]} 30. Qxb7 {[%emt 0:01:08]} Qxb7 {[%emt 0:01:13]} 31. Rxb7 {[%emt 0:00:08]} Rc8 {[%emt 0:03:27]} 32. Bxc6 {[%emt 0:00:25]} Be4+ {[%emt 0:01:32]} 33. Bxe4 {[%emt 0:00:12]} f6 {[%emt 0:00:36]} 34. Bc6 {[%emt 0:00:17]} Rg7 {[%emt 0:00:19]} 35. d7 {[%emt 0:00:33]} Ra8 {[%emt 0:00:56]} 36. d8=Q {[%emt 0:00:51]} Rxd8 {[%emt 0:00:04]} 37. Bxd8 {[%emt 0:00:17]} 1-0

[Event "GER-ch Youth U12W 2020"]
[Site "Willingen"]
[Date "2020.10.27"]
[Round "1.15"]
[White "Moldovan, Stela"]
[Black "Müller, Riyanna"]
[Result "1-0"]
[ECO "C88"]
[WhiteElo "1219"]
[BlackElo "1460"]
[Annotator "NA RC"]
[PlyCount "65"]
[EventDate "2020.10.27"]
[EventType "swiss"]
[EventRounds "7"]
[EventCountry "GER"]
[SourceTitle "playchess.com"]
[Source "ChessBase"]
[SourceQuality "1"]
[TimeControl "40/5400+30:1800+30"]

1. e4 e5 2. Nf3 Nc6 3. Bb5 a6 4. Ba4 {[%emt 0:04:36]} Nf6 {[%emt 0:04:05]} 5. O-O {[%emt 0:04:24]} b5 {[%emt 0:04:57]} 6. Bb3 {[%emt 0:01:48]} Be7 {[%emt 0:02:20]} 7. Re1 {[%emt 0:00:48]} d6 {[%emt 0:00:52]} 8. c3 {[%emt 0:01:10]} Bg4 {[%emt 0:03:54]} 9. h3 {[%emt 0:05:29]} Bh5 {[%emt 0:02:02]} 10. d3 {[%emt 0:03:07]} O-O {[%emt 0:02:56]} 11. Bg5 {[%emt 0:02:53]} Nd7 {[%emt 0:04:22]} 12. Bxe7 {[%emt 0:00:52]} Qxe7 {[%emt 0:00:34]} 13. Nbd2 {[%emt 0:00:17]} Nc5 {[%emt 0:02:49]} 14. Bd5 {[%emt 0:00:19]} Qd7 {[%emt 0:02:16]} 15. d4 {[%emt 0:02:09]} exd4 {[%emt 0:03:08]} 16. cxd4 {[%emt 0:01:57]} Nd3 {[%emt 0:03:29]} 17. Rc1 {[%emt 0:03:11]} Nxd4 {[%emt 0:03:45]} 18. Bxa8 {[%emt 0:00:31]} Nxc1 {[%emt 0:01:01]} 19. Qxc1 {[%emt 0:00:16]} Nxf3+ {[%emt 0:00:53]} 20. Nxf3 {[%emt 0:00:14]} Rxa8 {[%emt 0:00:42]} 21. Qf4 {[%emt 0:01:40]} Bxf3 {[%emt 0:03:24]} 22. Qxf3 {[%emt 0:03:56]} Re8 {[%emt 0:01:52]} 23. Qa3 {[%emt 0:01:55]} Qc6 {[%emt 0:01:33]} 24. f3 {[%emt 0:00:15]} f5 {[%emt 0:02:43]} 25. Qe3 {[%emt 0:02:15]} d5 {[%emt 0:02:15]} 26. Rc1 {[%emt 0:04:16]} Qd6 {[%emt 0:02:13]} 27. Qb3 {[%emt 0:01:53]} fxe4 {[%emt 0:02:05]} 28. fxe4 {[%emt 0:02:00]} Rxe4 {[%emt 0:02:16]} 29. Rd1 {[%emt 0:00:40]} c6 {[%emt 0:02:25]} 30. Qc2 {[%emt 0:02:38]} Qe6 {[%emt 0:03:44]} 31. Qf2 {[%emt 0:02:35]} a5 {[%emt 0:02:10]} 32. Rf1 {[%emt 0:00:47]} Qc8 {[%emt 0:02:02]} 33. Qf7+ {[%emt 0:00:09]} 1-0

[Event "GER-ch Youth U12W 2020"]
[Site "Willingen"]
[Date "2020.10.27"]
[Round "1.16"]
[White "Reich, Elisabeth"]
[Black "Heutling, Sarah"]
[Result "1-0"]
[ECO "C00"]
[WhiteElo "1128"]
[BlackElo "1197"]
[Annotator "NA RC"]
[PlyCount "63"]
[EventDate "2020.10.27"]
[EventType "swiss"]
[EventRounds "7"]
[EventCountry "GER"]
[SourceTitle "playchess.com"]
[Source "ChessBase"]
[SourceQuality "1"]
[TimeControl "40/5400+30:1800+30"]

1. e4 {[%emt 0:00:00]} e6 {[%emt 0:00:00]} 2. d3 {[%emt 0:00:00]} c5 {[%emt 0:00:00]} 3. Nd2 {[%emt 0:00:00]} Nc6 {[%emt 0:00:00]} 4. Ngf3 {[%emt 0:00:00]} g6 {[%emt 0:00:03]} 5. g3 {[%emt 0:00:01]} Bg7 {[%emt 0:00:09]} 6. Bg2 {[%emt 0:00:05]} Nge7 {[%emt 0:00:10]} 7. O-O {[%emt 0:00:17]} O-O {[%emt 0:00:07]} 8. Rb1 {[%emt 0:00:58]} d6 {[%emt 0:00:34]} 9. b3 {[%emt 0:01:09]} Rb8 {[%emt 0:01:37]} 10. Bb2 {[%emt 0:01:18]} e5 {[%emt 0:05:29]} 11. a4 {[%emt 0:01:53]} a6 {[%emt 0:09:07]} 12. Nc4 {[%emt 0:03:23]} b5 {[%emt 0:04:49]} 13. axb5 {[%emt 0:00:41]} axb5 {[%emt 0:00:10]} 14. Ne3 {[%emt 0:00:34]} Bb7 {[%emt 0:03:16]} 15. c3 {[%emt 0:08:52]} b4 {[%emt 0:00:24]} 16. c4 {[%emt 0:00:25]} Nd4 {[%emt 0:03:42]} 17. Nxd4 {[%emt 0:01:10]} cxd4 {[%emt 0:00:38]} 18. Nd5 {[%emt 0:00:26]} Nxd5 {[%emt 0:01:48]} 19. exd5 {[%emt 0:00:24]} Re8 {[%emt 0:03:12]} 20. f4 {[%emt 0:03:17]} exf4 {[%emt 0:02:37]} 21. Rxf4 {[%emt 0:01:04]} g5 {[%emt 0:02:50]} 22. Re4 {[%emt 0:01:33]} f5 {[%emt 0:06:25]} 23. Re1 {[%emt 0:01:56]} Qf6 {[%emt 0:02:22]} 24. Qd2 {[%emt 0:01:52]} Rxe1+ {[%emt 0:04:04]} 25. Rxe1 {[%emt 0:00:25]} Ba6 {[%emt 0:00:39]} 26. Re6 {[%emt 0:01:04]} Qd8 {[%emt 0:02:51]} 27. Qf2 {[%emt 0:01:11]} Bc8 {[%emt 0:01:24]} 28. Re1 {[%emt 0:01:42]} Qb6 {[%emt 0:00:46]} 29. Re8+ {[%emt 0:02:53]} Kf7 {[%emt 0:00:13]} 30. Qe2 {[%emt 0:00:28]} Qc7 {[%emt 0:01:09]} 31. Qh5+ {[%emt 0:00:32]} Kf6 {[%emt 0:00:11]} 32. Bxd4# {[%emt 0:00:17]} 1-0

[Event "GER-ch Youth U12W 2020"]
[Site "Willingen"]
[Date "2020.10.27"]
[Round "1.17"]
[White "Heuberger, Sandra"]
[Black "Lorenz, Veronika"]
[Result "1/2-1/2"]
[ECO "D32"]
[WhiteElo "1004"]
[BlackElo "1273"]
[Annotator "NA RC"]
[PlyCount "68"]
[EventDate "2020.10.27"]
[EventType "swiss"]
[EventRounds "7"]
[EventCountry "GER"]
[SourceTitle "playchess.com"]
[Source "ChessBase"]
[SourceQuality "1"]
[TimeControl "40/5400+30:1800+30"]

1. d4 {[%emt 0:00:00]} d5 {[%emt 0:00:00]} 2. c4 {[%emt 0:00:00]} e6 {[%emt 0:00:00]} 3. Nf3 {[%emt 0:00:00]} c5 {[%emt 0:00:00]} 4. cxd5 {[%emt 0:00:25]} exd5 {[%emt 0:00:07]} 5. Nc3 {[%emt 0:00:30]} Nc6 {[%emt 0:00:16]} 6. e3 {[%emt 0:00:50]} c4 {[%emt 0:00:06]} 7. Be2 {[%emt 0:00:57]} Nf6 {[%emt 0:03:46]} 8. O-O {[%emt 0:01:00]} Bb4 {[%emt 0:00:12]} 9. a3 {[%emt 0:01:40]} Bxc3 {[%emt 0:04:43]} 10. bxc3 {[%emt 0:00:14]} O-O {[%emt 0:00:35]} 11. Qd2 {[%emt 0:01:40]} Ne4 {[%emt 0:00:23]} 12. Qe1 {[%emt 0:00:45]} b5 {[%emt 0:07:00]} 13. Bd1 {[%emt 0:02:49]} a5 {[%emt 0:06:53]} 14. Bc2 {[%emt 0:01:44]} f5 {[%emt 0:05:03]} 15. Nd2 {[%emt 0:02:35]} Nxc3 {[%emt 0:03:19]} 16. Bb2 {[%emt 0:01:33]} Ne4 {[%emt 0:00:49]} 17. Nxe4 {[%emt 0:00:48]} fxe4 {[%emt 0:00:08]} 18. Bc3 {[%emt 0:02:39]} Rb8 {[%emt 0:01:30]} 19. Rb1 {[%emt 0:00:33]} Qd6 {[%emt 0:03:16]} 20. Qc1 {[%emt 0:07:00]} b4 {[%emt 0:01:15]} 21. axb4 {[%emt 0:00:45]} axb4 {[%emt 0:00:10]} 22. Be1 {[%emt 0:02:37]} b3 {[%emt 0:00:39]} 23. Bd1 {[%emt 0:00:55]} Ba6 {[%emt 0:00:54]} 24. f3 {[%emt 0:01:46]} c3 {[%emt 0:03:10]} 25. Bg3 {[%emt 0:01:55]} Qd7 {[%emt 0:15:31]} 26. Bxb8 {[%emt 0:02:38]} c2 {[%emt 0:00:00]} 27. Bxc2 {[%emt 0:00:23]} bxc2 {[%emt 0:00:10]} 28. Qxc2 {[%emt 0:00:10]} Bxf1 {[%emt 0:00:12]} 29. Rxf1 {[%emt 0:00:27]} Nxb8 {[%emt 0:00:46]} 30. fxe4 {[%emt 0:03:03]} Rxf1+ {[%emt 0:00:45]} 31. Kxf1 {[%emt 0:00:10]} Qf7+ {[%emt 0:00:38]} 32. Kg1 {[%emt 0:00:16]} Qg6 {[%emt 0:00:15]} 33. Qc8+ {[%emt 0:02:30]} Kf7 {[%emt 0:00:46]} 34. Qxb8 {[%emt 0:00:14]} Qxe4 {[%emt 0:02:22]} 1/2-1/2